Cogmind - Beta 15 @@@ ROGUE MODE // 2025.06.16 @ 19:45:26 Player: puppuppit Result: Destroyed by AY-75H(R) with Subdweller Laser Performance ------------- Evolutions (0) 0 Regions Visited (2) 400 Robots Destroyed (56) 280 Value Destroyed (1046) 1046 Prototype IDs (0) 0 Alien Tech Used (0) 0 Bonus (0) 0 TOTAL SCORE: 1726 Bonus ------- None Cogmind --------- Core Integrity 0/250 Matter 257/300 Energy 200/200 System Corruption 0% Temperature Cool (6) Movement Rolling (95) Ox1 Location -10/Subcaves Parts ------- > --- POWER (1) -------- Subdweller Power Source > --- PROPULSION (2) --- Wheel Wheel > --- UTILITY (2) ------ Large Storage Unit Utility Shielding > --- WEAPON (2) ------- Subdweller Machine Gun > --- INVENTORY (15) --- Flightbrick High-capacity Matter Pod (200) High-capacity Matter Pod (200) Subdweller Optics Improved Terrain Scanner Improved Terrain Scanner Propulsion Shielding Light Assault Rifle Light Assault Rifle Light Assault Rifle Light Assault Rifle Hammer Peak State ------------ > --- POWER ------------ Subdweller Power Source > --- PROPULSION ------- Wheel Wheel > --- UTILITY ---------- Large Storage Unit Improved Terrain Scanner > --- WEAPON ----------- Subdweller Machine Gun Hammer > --- INVENTORY -------- Flightbrick High-capacity Matter Pod High-capacity Matter Pod Subdweller Optics Improved Terrain Scanner Propulsion Shielding Utility Shielding Light Assault Rifle Light Assault Rifle Light Assault Rifle Light Assault Rifle Light Assault Rifle [Rating: 16] Favorites ----------- Power Ion Engine Engine Ion Engine Propulsion Light Treads Treads Light Treads Leg Aluminum Leg Wheel Wheel Utility Large Storage Unit Device Improved Terrain Scanner Storage Large Storage Unit Hackware Hacking Suite Protection Light Armor Plating Weapon Assault Rifle Ballistic Gun Assault Rifle Impact Weapon Hammer Build | -11 -10 -10 ------- Run | Yrd Mat Sub Slots Evolved . | . . . Power . | . . . Propulsion . | . . . Utility . | . . . Weapon . | . . . Parts Attached 34 | 9 15 10 Power 6 | 1 3 2 Engine 6 | 1 3 2 Core . | . . . Reactor . | . . . Propulsion 12 | 2 8 2 Treads 4 | 2 2 . Leg 4 | . 4 . Wheel 4 | . 2 2 Hover . | . . . Flight . | . . . Utility 10 | 3 3 4 Device 3 | 2 . 1 Storage 3 | 1 1 1 Processor . | . . . Hackware 1 | . 1 . Protection 3 | . 1 2 Artifact . | . . . Weapon 6 | 3 1 2 Energy Gun . | . . . Energy Cannon . | . . . Ballistic Gun 5 | 3 1 1 Ballistic Cannon . | . . . Launcher . | . . . Special Weapon . | . . . Impact Weapon 1 | . . 1 Slashing Weapon . | . . . Piercing Weapon . | . . . Special Melee Weapon . | . . . Unidentified Prototypes . | . . . Parts Lost 10 | . 3 7 Power 2 | . 1 1 Propulsion 4 | . 1 3 Utility 1 | . . 1 Weapon 3 | . 1 2 Highest Loss Streak 6 | . 1 6 To Critical Strikes 1 | . . 1 Average Backups 10 | . 9 12 Power 1 | . 1 . Propulsion 2 | . 2 1 Utility 4 | . 4 5 Weapon 2 | . 1 4 Tool/Special . | . . . Unused Backups 9 | . 2 7 Power . | . . . Propulsion 1 | . . 1 Utility 4 | . 1 3 Weapon 4 | . 1 3 Tool/Special . | . . . Average Slot Usage (%) 98 | . 98 98 Engine 13 | . 13 14 Treads 18 | . 21 8 Leg 4 | . 5 . Wheel 4 | . . 18 Device 8 | . 7 11 Storage 14 | . 14 14 Hackware 1 | . 2 . Protection 3 | . 4 1 Ballistic Gun 25 | . 27 19 Impact Weapon 1 | . . 7 Peak Build Rating 16 | 9 10 16 Average Rating 9 | 6 9 12 On Entrance 6 | . 9 10 Naked Turns . | . . . Heaviest Build 33 | 13 31 33 Greatest Support 40 | 40 40 40 Greatest Overweight (x) 3 | 1 1 3 Average Overweight (x) . | . . . Largest Inventory Capacity 15 | 8 15 15 Average Capacity 12 | 7 12 15 Most Carried 15 | 4 15 15 Average Carried 10 | 1 10 14 Final Capacity 15 | 8 15 15 Final Carried 15 | 4 15 15 Class Distribution -------------------- 81% | Scavenger-Mutant 18% | Mutant Dominant Class ---------------- Scavenger-Mutant | -10/Materials Scavenger-Mutant | -10/Subcaves Resources | -11 -10 -10 ----------- Run | Yrd Mat Sub Matter Collected 1838 | 368 1316 154 Remotely 24 | 24 . . Salvage Created 1842 | 238 1450 154 Parts 144 | 20 116 8 Haulers Intercepted 1 | . 1 . Recyclers Shooed 2 | 1 1 . Parts Field Recycled . | . . . Retrieved Matter . | . . . Parts Self-Destructed 5 | . . 5 Prevented . | . . . Kills | -11 -10 -10 ------- Run | Yrd Mat Sub Combat Hostiles Destroyed 26 | . 23 3 Guns 26 | . 23 3 Classes Destroyed 11 | 3 7 1 Worker 9 | 2 7 . Builder 5 | . 5 . Tunneler 7 | 5 2 . Hauler 1 | . 1 . Recycler 2 | 1 1 . Mechanic 1 | . 1 . Operator 3 | . 3 . Watcher 2 | . 2 . Swarmer 3 | . 3 . Grunt 20 | . 20 . Subdweller 3 | . . 3 Best Kill Streak 7 | 7 6 2 Combat Bots Only 6 | . 6 2 Max Kills in Single Turn 1 | 1 1 1 Gunslinging . | . . . Exploded . | . . . Melee . | . . . Uniques/NPCs Destroyed . | . . . Combat | -11 -10 -10 -------- Run | Yrd Mat Sub Hostile Shots Fired 146 | . 107 39 Missed 33 | . 23 10 Hits 113 | . 84 29 Projectile 113 | . 84 29 Critical Strikes 1 | . . 1 Damage Taken 1566 | . 939 627 Core 267 | . 139 128 Absorbed by Shields . | . . . Redirected to Shielding 23 | . . 23 Core Remaining (%) 100 | 100 . . Volleys Fired 178 | 15 137 26 Largest 2 | 2 2 2 Hottest 50 | 40 40 50 Shots Fired 353 | 30 273 50 Gun 353 | 30 273 50 Cannon . | . . . Launcher . | . . . Special . | . . . Kinetic 353 | 30 273 50 Thermal . | . . . Explosive . | . . . Electromagnetic . | . . . Robot Hit Streak 30 | 5 27 30 Robot Miss Streak 4 | 3 4 1 Penetration Max . | . . . Secondary Targets 3 | . 3 . Max Gunslinging Chain 1 | . 1 . Shots Hit Robots 231 | 14 171 46 Core Hits 99 | 9 78 12 Critical Kills . | . . . Critical Parts Destroyed 3 | . 3 . Critical Strikes 3 | . 3 . Destroy 3 | . 3 . Melee Attacks 3 | . . 3 Impact 3 | . . 3 Slashing . | . . . Piercing . | . . . Sneak Attacks . | . . . Combat Hostiles . | . . . Follow-up Attacks . | . . . Damage Inflicted 2582 | 185 1977 420 Guns 2574 | 185 1969 420 Cannons . | . . . Explosions . | . . . Melee . | . . . Ramming 8 | . 8 . Kinetic 2574 | 185 1969 420 Thermal . | . . . Explosive . | . . . Electromagnetic . | . . . Impact . | . . . Slashing . | . . . Piercing . | . . . Highest Corruption . | . . . Average Corruption . | . . . Corruption Purged . | . . . Corruption Blocked . | . . . Overload Shots . | . . . Overflow Damage . | . . . Projectiles . | . . . Explosions . | . . . Melee . | . . . Knockbacks . | . . . Impact . | . . . Kinetic . | . . . Secondary . | . . . Self-Inflicted Damage . | . . . Shots . | . . . Rammed . | . . . Targets Rammed 1 | . 1 . Kicked 1 | . 1 . Crushed . | . . . Highest Temperature 19 | . 19 . Average Temperature 6 | . 6 . Received Heat Transfer 573 | . 483 90 Siege Activations . | . . . Martial Activations . | . . . Shielding Activations . | . . . Robots Disrupted . | . . . Combat Hostiles . | . . . Robots Corrupted . | . . . Combat Hostiles . | . . . Parts Fried . | . . . Impact Corruptions . | . . . Robots Melted . | . . . Combat Hostiles . | . . . Parts Melted . | . . . Heat Transferred . | . . . Parts Sabotaged . | . . . Parts Stolen . | . . . Parts Stripped . | . . . Power Chain Reactions . | . . . Alert | -11 -10 -10 ------- Run | Yrd Mat Sub Maximum Alert Level 1 | . 1 . Low Security (%) 59 | 100 56 . Level 1 40 | . 43 . Level 2 . | . . . Level 3 . | . . . Level 4 . | . . . Level 5 . | . . . High Security . | . . . Max Security . | . . . Peak Influence 247 | 15 247 . Initial 3 | . 3 . Average 162 | 3 172 . Influence Increases 810 | 40 770 . Destroy 0b10 Robot/C 460 | . 460 . Destroy 0b10 Robot/NC 150 | 40 110 . Destroy Leader 96 | . 96 . Successful Hack 12 | . 12 . Select Force Hacks 30 | . 30 . Destroy Structure 2 | . 2 . Lose Combat Pursuer 60 | . 60 . Influence Decreases 810 | 35 604 171 Entered New Map 85 | . 2 83 Time Decay 687 | 35 572 80 Lost Part 38 | . 30 8 Squads Dispatched 6 | . 6 . Investigation 3 | . 3 . Extermination . | . . . Reinforcement 3 | . 3 . Assault . | . . . Garrison . | . . . Intercept . | . . . Searches Triggered . | . . . Construction Impeded . | . . . Haulers Reinforced . | . . . Active Scanning Responses . | . . . Cargo Convoy Interrupts . | . . . Stealth | -11 -10 -10 --------- Run | Yrd Mat Sub Distress Signals 2 | . 2 . Communications Jammed . | . . . Distress Signals . | . . . Times Spotted 45 | . 40 5 Peak Tracking Total 4 | . 4 3 Tactical Retreats 3 | . 3 . Traps | -11 -10 -10 ------- Run | Yrd Mat Sub Traps Triggered 4 | . 3 1 Indirectly . | . . . Trap Hack Attempts . | . . . Triggered . | . . . Disarmed . | . . . Reprogrammed . | . . . Reused . | . . . Traps Extracted . | . . . Installed . | . . . Triggered . | . . . Machines | -11 -10 -10 ---------- Run | Yrd Mat Sub Machines Disabled 1 | . . 1 Max in Single Turn 1 | . . 1 Machines Repaired . | . . . Machines Dismantled . | . . . Machines Sabotaged . | . . . Overloaded Fab Kills . | . . . Hacking | -11 -10 -10 --------- Run | Yrd Mat Sub Machines Accessed 7 | . 7 . Terminals 6 | . 6 . Fabricators . | . . . Repair Stations . | . . . Recycling Units 1 | . 1 . Scanalyzers . | . . . Garrison Access . | . . . Total Hacks 17 | . 17 . Successful 10 | . 10 . Failed 6 | . 6 . Catastrophic 2 | . 2 . Database Lockouts 1 | . 1 . Manual 17 | . 17 . Terminals 16 | . 16 . Fabricators . | . . . Repair Stations . | . . . Recycling Units 1 | . 1 . Scanalyzers . | . . . Garrison Access . | . . . Terminal Hacks 5 | . 5 . Robot Analysis 4 | . 4 . Terminal Index 1 | . 1 . Fabricator Hacks . | . . . Repair Station Hacks . | . . . Recycling Unit Hacks . | . . . Scanalyzer . | . . . Garrison Access Hacks . | . . . Unauthorized Hacks 5 | . 5 . Terminals 4 | . 4 . Botnet 4 | . 4 . Fabricators . | . . . Repair Stations . | . . . Recycling Units 1 | . 1 . Tunnel 1 | . 1 . Scanalyzers . | . . . Garrison Access . | . . . Data Cores Recovered . | . . . Used . | . . . Hacking Detections 6 | . 6 . Full Trace Events 1 | . 1 . Feedback Events . | . . . Feedback Blocked . | . . . Robot Schematics Acquired . | . . . Robots Built . | . . . Authchips . | . . . Time . | . . . Total Robot Build Rating . | . . . Part Schematics Acquired . | . . . Parts Built . | . . . Authchips . | . . . Time . | . . . Total Part Build Rating . | . . . Parts Repaired . | . . . Time . | . . . Parts Recycled . | . . . Recycled Matter . | . . . Retrieved Matter . | . . . Retrieved Components . | . . . Parts Scanalyzed . | . . . Part Schematics Acquired . | . . . Parts Damaged . | . . . Bothacking | -11 -10 -10 ------------ Run | Yrd Mat Sub Used RIF Installer . | . . . Robots Hacked . | . . . Non-combat . | . . . Combat . | . . . Robot Hacks Applied . | . . . Relay Couplers Released . | . . . Fabnet Peak Effective % . | . . . Robots Rewired . | . . . Allies Hacked . | . . . Hacks Repelled . | . . . Allies | -11 -10 -10 -------- Run | Yrd Mat Sub Total Allies . | . . . Largest Group . | . . . Highest-Rated Group . | . . . Highest-Rated Ally . | . . . Total Orders . | . . . Ally Attacks . | . . . Total Damage . | . . . Kills . | . . . Allies Corrupted . | . . . Allies Melted . | . . . Intel | -11 -10 -10 ------- Run | Yrd Mat Sub Active Infowar (turns) 1633 | 54 1043 536 Optics 25 | . . 25 Terrain 1608 | 54 1043 511 Robot Analysis Total 4 | . 4 . Derelict Logs Recovered . | . . . Drone Launches . | . . . Drone Recoveries . | . . . Exploration | -11 -10 -10 ------------- Run | Yrd Mat Sub Turns Passed 2781 | 129 2014 638 Spaces Moved 1240 | 45 965 230 Core 4 | 4 . . Treads 870 | 41 730 99 Legs 222 | . 222 . Wheels 144 | . 13 131 Hover . | . . . Flight . | . . . Fastest Speed 50 | 50 95 95 Average Speed 146 | 152 150 123 Slowest Speed 240 | 160 240 160 Overloaded Moves . | . . . Propulsion Burnouts . | . . . Robots Hopped . | . . . Potential Cave-ins . | . . . Cave-ins Triggered . | . . . Exploration Rate (%) 39 | 5 99 13 Regions Visited 2 Branch Regions 1 Pre-discovered Areas 1 | . 1 . Known Exits Taken . | . . . Unknown Exits Taken 2 | 1 1 . Scrap Searched . | . . . Spaces Dug . | . . . Terrain Destroyed . | . . . Melee . | . . . Projectile . | . . . AOE . | . . . Terrain Rammed . | . . . Walls Destroyed . | . . . Machines Disabled . | . . . Actions | -11 -10 -10 --------- Run | Yrd Mat Sub Total 1863 | 71 1260 532 Wait 358 | . 110 248 Move 1238 | 44 964 230 Hop . | . . . Pick Up 26 | 3 18 5 Fast Attach 13 | 7 6 . Attach 7 | . 1 6 Detach . | . . . Swap 25 | 2 12 11 Drop 14 | . 11 3 Fire 178 | 15 137 26 Melee 3 | . . 3 Ram . | . . . Kick 1 | . 1 . Crush . | . . . Escape Stasis . | . . . Rewire . | . . . Trap . | . . . Miscellaneous . | . . . Route ------- -11/Scrapyard -10/Materials (discovered 5 exits: [*Mat x3] / [*Min] / [*Sub]) -10/Subcaves History --------- Turn | Location | Event 18 | -11/Scrapyard | Discovered new exit (range 15) 130 | -11/Scrapyard | Entered Materials 302 | -10/Materials | Build established: Mutant 573 | -10/Materials | Discovered new exit (range 12) 758 | -10/Materials | Discovered new exit (range 15) 802 | -10/Materials | Core integrity fell below 50% 811 | -10/Materials | Build established: Scavenger-Mutant 1020 | -10/Materials | Discovered new exit (range 5) 1303 | -10/Materials | Discovered new exit (range 16) 1421 | -10/Materials | Central database locked down 2130 | -10/Materials | Discovered new exit (range 10) 2144 | -10/Materials | Entered Subcaves 2297 | -10/Subcaves | Visited 4L-MR0's lab 2349 | -10/Subcaves | Core integrity fell below 20% 2405 | -10/Subcaves | Lost 6 parts (1p3n1u1w) 2419 | -10/Subcaves | Found Prototype Flight Unit 2782 | -10/Subcaves | Destroyed by AY-75H(R) with Subdweller Laser Last Messages --------------- 02383_ Subatomizers dissect the Disposable Heat Sink. 02383_ Acquired 39 matter. 02385_ Acquired 57 matter. 02388_ Acquired Utility Shielding. 02389_ Acquired 16 matter. 02391_ Acquired Sub. Optics. 02394_ Acquired Propulsion Shielding. 02398_ Subatomizers dissect the Sub. Monowheel. 02409_ Testing Chamber breached. 02415_ Dropped Lrg. Storage Unit. 02417_ Dropped Imp. Terrain Scanner. 02418_ Dropped Utility Shielding. 02419_ Acquired Prototype Flight Unit. 02421_ Subatomizers dissect the Imp. Terrain Scanner. 02423_ Acquired Imp. Terrain Scanner. 02425_ Acquired Utility Shielding. 02438_ Acquired 42 matter. 02442_ Subatomizers dissect the Sub. Power Source. 02442_ Acquired Sub. Power Source. 02778_ Lgt. Assault Rifle destroyed. Map ----- +----------------------------------------------------+ | ????????????????????#####????????????????????????? | | ???????????????????##"" ##########???????????????? | | ???????????????????#""" ##"" ! #????#??????????? | | ???????????????????#"""""# ###??#????????????? | | ?????????????????#?#" " + "X"""#????????#????#?? | | ???????????????????#""" "#"""""""##????#???###???# | | ???????????????????#"" "##########????#???#?#???## | | ???????????????????#"" "##????#??????##?????????#? | | ???????????????????#""" "######??????????#??#??#?? | | ???????????????????##""= #[ #????#????#???#?#??? | | ??????????????????###" * ##??###???#?????##??? | | ????????????????### ## =##& "#??# ##??#?#######?? | | ??????????????#?## ######" "#### ##??## ### | | ???????????????### ### " ## ##?## #? | | ???????????????# #??## #? | | ?????????##????## ### #### ##? | | ????? ????#?????## #### ### ### | | ????????????????##### ### ## ## | | ???????????#????????# #### ## ### #? | | ?????????? #??#?????###### ####"""" #### #? | | ??????????########???#### ##?###""" #?###? | | ?# ??????# #???## ##?####### ##?#"?? | | # ??????## #??## ####"#""#?####????? | | ?? ????## #??# R ""#?#?????????? | | ??????#?# #??# R ##?#????? ? ? | | ??##??### ##?## @## ## #?????????#? | | #??????# ##### ### # ""???????? | | ####???## #### #?## ###"## #????? ?? | | ##???# ### ###??## "#?#?##? ?"" ?? | | ##??# # ##???### ##???#??????"?" | | #????# #?##??# ####?#??#?????? | | #???## #?????# #???????????#?# | | # #???## ## ##?????# ##?????#????##?? | | # #???# ######??? #???????#???#?? | | # ###?## #####??# #???????#?????# | | ##??## ## ##?### % ?????????????? | | #### #???## ????????????? | | # ## ##????## "#???????????? | | #### ## #??????# ""???????????? | | #??## ####### ##?????? """??????????? | | #???# ###?????# #???????# =&[""???????????? | | #???# ##??????? ##?????#?# "%& ???????????? | | #???#####???????# ##????????## ""& ????????????? | | #???#??????????? #??????????# " ???????????? | | ??????????????? #??????????##?"" ???????????? | | ??????????????# ??????????????"" ???????????? | | ??????????????# ???????? ???????"???????????? | | ???????#?????## ????????????????????????????? | | ??? ??????????## ??#????????????????????????? | | ? ????????????## ???????????????????????????? | +----------------------------------------------------+ Best States ------------- Heat Dissipation 25 Energy Generation 15 Energy Capacity 250 Matter Stores 300 Matter Capacity 300 Sight Range 21 Terrain Scan Range 16 Terrain Scan Density 10 Armor Coverage 150 Propulsion Shielding 33 Utility Shielding 33 Evasion (%) 55 Recoil Reduction 2 Offensive Hacking 10 Item Schematics ----------------- None Robot Schematics ------------------ None Fabricated ------------ Nothing Repaired ---------- Nothing Alien Tech Used ----------------- None Achievements -------------- None Challenges ------------ None Game ------ Seed CoreCentriumPit Manual? 0 Play Time 00:14:35 Cumulative 297.8 hours Start 2025.06.16 @ 19:33:27 End 2025.06.16 @ 19:45:26 Sessions 1 Manual Loads 0 Difficulty Rogue Special Mode None Game No. 184 Rogue 184 Adventurer 0 Explorer 0 Win Type - Total 4 Types 2/0/1/1/0/0/0/0/0/0 Lore% 82 Gallery% 70 Achievement% 66 Wizard Run 0 Options --------- Layout 2 ASCII 0 Keyboard 1 Movement Vi Keybinds 0 Fullscreen 1 Font 16/Tamsyn Map View 55x47 Zoom Use 0% Tactical HUD 1 Map Filters NONE Filters NONE Steam 0 RUN: 4310f769-534a-40ab-87de-df70d47a93b4